fUST/lending_fUST_20250131
["ID","MTS","AMOUNT","RATE_DAILY","PERIOD"]
[351014646,1738287039065,-500.0,0.00016575,2]
[351014647,1738287039074,-500.0,0.00016575,2]
[351014648,1738287039087,-500.0,0.00016575,2]
[351014649,1738287039097,-500.0,0.00016575,2]
[351014650,1738287039106,-503.52347018,0.00016575,2]
[351014651,1738287039116,-500.0,0.00016575,2]
[351014652,1738287039126,-500.0,0.00016575,2]
[351014653,1738287039135,-500.0,0.00016575,2]
[351014654,1738287039144,-500.0,0.00016575,2]
[351014655,1738287039159,-500.0,0.00016575,2]
[351014656,1738287039169,-500.0,0.00016575,2]
[351014657,1738287039178,-504.77894629,0.00016575,2]
[351014658,1738287039190,-500.0,0.00016575,2]
[351014659,1738287039203,-500.0,0.00016575,2]
[351014660,1738287039214,-500.0,0.00016575,2]
[351014661,1738287039223,-500.0,0.00016575,2]
[351014662,1738287039232,-626.57,0.00016575,2]
[351014663,1738287039241,-500.0,0.00016575,2]
[351014665,1738287039251,-500.0,0.00016575,2]
[351014667,1738287039260,-500.0,0.00016575,2]
[351014668,1738287039270,-500.0,0.00016575,2]
[351014669,1738287039279,-500.0,0.00016575,2]
[351014670,1738287039288,-620.86,0.00016575,2]
[351014671,1738287039298,-500.0,0.00016575,2]
[351014672,1738287039307,-543.71197316,0.00016575,2]
[351014673,1738287039317,-500.0,0.00016575,2]
[351014674,1738287039326,-333.4582048,0.00016575,2]
[351014675,1738287039337,-913.78,0.00016575,2]
[351014676,1738287039346,-500.0,0.00016575,2]
[351014677,1738287039355,-500.0,0.00016575,2]
[351014678,1738287039364,-502.69757913,0.00016575,2]
[351014679,1738287039374,-500.0,0.00016575,2]
[351014680,1738287039383,-500.0,0.00016575,2]
[351014681,1738287039392,-526.77,0.00016575,2]
[351014682,1738287039401,-500.0,0.00016575,2]
[351014683,1738287039411,-500.0,0.00016575,2]
[351014684,1738287039420,-500.0,0.00016575,2]
[351014687,1738287039430,-500.0,0.00016575,2]
[351014690,1738287039439,-500.0,0.00016575,2]
[351014692,1738287039448,-500.0,0.00016575,2]
[351014694,1738287039457,-500.0,0.00016575,2]
[351014695,1738287039467,-500.0,0.00016575,2]
[351014696,1738287039475,-810.44,0.00016575,2]
[351014697,1738287039487,-240.3224408,0.00016575,2]
[351014698,1738287039497,-500.0,0.00016575,2]
[351014699,1738287039505,-500.0,0.00016575,2]
[351014700,1738287039515,-500.0,0.00016575,2]
[351014701,1738287039524,-247.1319793,0.00016575,2]
[351014702,1738287039535,-500.0,0.00016575,2]
[351014703,1738287039543,-500.0,0.00016575,2]
[351014704,1738287039553,-500.0,0.00016575,2]
[351014705,1738287039562,-600.03,0.00016575,2]
[351014706,1738287039571,-500.0,0.00016575,2]
[351014707,1738287039582,-500.0,0.00016575,2]
[351014708,1738287039591,-500.0,0.00016575,2]
[351014709,1738287039599,-585.66056731,0.00016575,2]
[351014710,1738287039608,-500.0,0.00016575,2]
[351014711,1738287039617,-500.0,0.00016575,2]
[351014712,1738287039626,-500.0,0.00016575,2]
[351014713,1738287039636,-500.0,0.00016575,2]
[351014714,1738287039645,-500.0,0.00016575,2]
[351014715,1738287039654,-545.37,0.00016575,2]
[351014716,1738287039663,-357.23263321,0.00016575,2]
[351014717,1738287039672,-500.0,0.00016575,2]
[351014718,1738287039682,-500.0,0.00016575,2]
[351014719,1738287039691,-500.0,0.00016575,2]
[351014720,1738287039700,-500.0,0.00016575,2]
[351014721,1738287039709,-500.0,0.00016575,2]
[351014722,1738287039718,-500.0,0.00016575,2]
[351014723,1738287039728,-557.60149329,0.00016575,2]
[351014724,1738287039741,-500.0,0.00016575,2]
[351014725,1738287039752,-500.0,0.00016575,2]
[351014727,1738287039762,-500.0,0.00016575,2]
[351014728,1738287039771,-500.0,0.00016575,2]
[351014730,1738287039780,-500.0,0.00016575,2]
[351014732,1738287039791,-500.0,0.00016575,2]
[351014733,1738287039800,-500.0,0.00016575,2]
[351014734,1738287039809,-2538.03,0.00016575,2]
[351014735,1738287039819,-500.0,0.00016575,2]
[351014737,1738287039829,-500.0,0.00016575,2]
[351014738,1738287039839,-500.0,0.00016575,2]
[351014739,1738287039848,-500.0,0.00016575,2]
[351014740,1738287039857,-1641.67,0.00016575,2]
[351014741,1738287039867,-500.0,0.00016575,2]
[351014742,1738287039876,-500.0,0.00016575,2]
[351014743,1738287039886,-939.4,0.00016575,2]
[351014744,1738287039895,-500.0,0.00016575,2]
[351014745,1738287039905,-500.0,0.00016575,2]
[351014747,1738287039916,-505.54605134,0.00016575,2]
[351014748,1738287039925,-503.9170017,0.00016575,2]
[351014749,1738287039935,-500.0,0.00016575,2]
[351014750,1738287039944,-500.0,0.00016575,2]
[351014751,1738287039953,-500.0,0.00016575,2]
[351014752,1738287039961,-500.0,0.00016575,2]
[351014753,1738287039971,-500.0,0.00016575,2]
[351014754,1738287039980,-500.0,0.00016575,2]
[351014755,1738287039988,-640.95,0.00016575,2]
[351014756,1738287039998,-500.0,0.00016575,2]
[351014757,1738287040006,-500.0,0.00016575,2]
[351014758,1738287040015,-500.0,0.00016575,2]
[351014759,1738287040024,-500.0,0.00016575,2]
[351014760,1738287040033,-500.0,0.00016575,2]
[351014761,1738287040042,-419.09,0.00016575,2]
[351014762,1738287040051,-500.0,0.00016575,2]
[351014763,1738287040059,-500.0,0.00016575,2]
[351014764,1738287040068,-500.0,0.00016575,2]
[351014765,1738287040077,-500.0,0.00016575,2]
[351014766,1738287040087,-500.0,0.00016575,2]
[351014767,1738287040096,-500.0,0.00016575,2]
[351014768,1738287040105,-239.58712104,0.00016575,2]
[351014769,1738287040114,-500.0,0.00016575,2]
[351014770,1738287040123,-536.34,0.00016575,2]
[351014771,1738287040133,-151.0,0.00016575,2]
[351014772,1738287040142,-506.31965631,0.00016575,2]
[351014773,1738287040151,-651.28,0.00016575,2]
[351014774,1738287040162,-500.0,0.00016575,2]
[351014775,1738287040171,-1450.39,0.00016575,2]
[351014776,1738287040180,-500.0,0.00016575,2]
[351014777,1738287040189,-500.0,0.00016575,2]
[351014778,1738287040198,-500.0,0.00016575,2]
[351014779,1738287040207,-151.0,0.00016575,2]
[351014780,1738287040216,-629.66,0.00016575,2]
[351014781,1738287040226,-500.0,0.00016575,2]
[351014782,1738287040235,-500.0,0.00016575,2]
[351014783,1738287040243,-305.67029914,0.00016575,2]
[351014784,1738287040253,-562.79,0.00016575,2]
[351014785,1738287040263,-500.0,0.00016575,2]
[351014786,1738287040274,-621.69,0.00016575,2]
[351014787,1738287040283,-617.15924515,0.00016575,2]
[351014788,1738287040292,-500.0,0.00016575,2]
[351014789,1738287040301,-500.0,0.00016575,2]
[351014790,1738287040310,-500.0,0.00016575,2]
[351014791,1738287040320,-500.0,0.00016575,2]
[351014792,1738287040330,-500.0,0.00016575,2]
[351014793,1738287040339,-500.0,0.00016575,2]
[351014794,1738287040349,-500.0,0.00016575,2]
[351014795,1738287040358,-505.24838315,0.00016575,2]
[351014796,1738287040367,-501.44280777,0.00016575,2]
[351014797,1738287040377,-500.0,0.00016575,2]
[351014798,1738287040386,-504.6364839,0.00016575,2]
[351014799,1738287040394,-506.83851705,0.00016575,2]
[351014800,1738287040403,-641.32,0.00016575,2]
[351014801,1738287040412,-500.0,0.00016575,2]
[351014802,1738287040423,-505.03166714,0.00016575,2]
[351014803,1738287040432,-281.811707,0.00016575,2]
[351014804,1738287040441,-500.0,0.00016575,2]
[351014805,1738287040450,-8879.4,0.00016575,2]
[351014806,1738287040460,-278.25760909,0.00016575,2]
[351014807,1738287040469,-502.02753486,0.00016575,2]
[351014808,1738287040478,-500.0,0.00016575,2]
[351014809,1738287040487,-504.8266838,0.00016575,2]
[351014810,1738287040496,-500.0,0.00016575,2]
[351014811,1738287040505,-294.38448017,0.00016575,2]
[351014812,1738287040514,-1962.32,0.00016575,2]
[351014813,1738287040523,-500.0,0.00016575,2]
[351014814,1738287040532,-500.0,0.00016711,2]
[351014815,1738287040542,-500.0,0.00016711,2]
[351014816,1738287040551,-500.0,0.00016711,2]
[351014817,1738287040561,-5038.92,0.00016711,2]
[351014818,1738287040571,-500.0,0.00016711,2]
[351014819,1738287040582,-151.0,0.00016711,2]
[351014820,1738287040591,-191.815239,0.00016712,2]
[351014821,1738287040601,-500.0,0.00016712,2]
[351014822,1738287040610,-500.0,0.00016712,2]
[351014823,1738287040619,-500.0,0.00016712,2]
[351014824,1738287040628,-500.0,0.00016712,2]
[351014825,1738287040637,-218.52,0.00016712,2]
[351014826,1738287040646,-500.0,0.00016712,2]
[351014827,1738287040655,-500.0,0.00016712,2]
[351014828,1738287040664,-500.0,0.00016712,2]
[351014829,1738287040673,-500.0,0.00016712,2]
[351014830,1738287040682,-504.12994658,0.00016712,2]
[351014831,1738287040691,-523.53488224,0.00016712,2]
[351014832,1738287040701,-500.0,0.00016712,2]
[351014833,1738287040709,-500.0,0.00016712,2]
[351014834,1738287040718,-500.0,0.00016712,2]
[351014835,1738287040727,-500.0,0.00016712,2]
[351014836,1738287040737,-510.78165658,0.00016712,2]
[351014837,1738287040749,-500.0,0.00016712,2]
[351014838,1738287040759,-500.0,0.00016712,2]
[351014839,1738287040768,-500.0,0.00016712,2]
[351014840,1738287040778,-500.0,0.00016712,2]
[351014841,1738287040789,-223.15,0.00016712,2]
[351014842,1738287040798,-500.0,0.00016712,2]
[351014843,1738287040807,-500.0,0.00016712,2]
[351014844,1738287040821,-620.86,0.00016712,2]
[351014845,1738287040833,-500.0,0.00016712,2]
[351014846,1738287040843,-913.78,0.00016712,2]
[351014847,1738287040852,-339.15055618,0.00016712,2]
[351014848,1738287040861,-330.94,0.00016712,2]
[351014849,1738287040870,-265.05960498,0.00016712,2]
[351014850,1738287040879,-500.0,0.00016712,2]
[351014851,1738287040888,-500.0,0.00016712,2]
[351014852,1738287040897,-500.0,0.00016712,2]
[351014853,1738287040906,-510.53134449,0.00016712,2]
[351014854,1738287040916,-500.0,0.00016712,2]
[351014855,1738287040925,-500.0,0.00016712,2]
[351014856,1738287040934,-810.44,0.00016712,2]
[351014857,1738287040943,-500.0,0.00016712,2]
[351014858,1738287040952,-500.0,0.00016712,2]
[351014859,1738287040961,-500.0,0.00016712,2]
[351014860,1738287040970,-500.0,0.00016712,2]
[351014861,1738287040979,-600.03,0.00016712,2]
[351014862,1738287040989,-500.0,0.00016712,2]
[351014863,1738287040998,-500.0,0.00016712,2]
[351014864,1738287041008,-316.69,0.00016712,2]
[351014865,1738287041017,-646.75,0.00016712,2]
[351014866,1738287041026,-184.05,0.00016712,2]
[351014867,1738287041035,-500.0,0.00016712,2]
[351014868,1738287041044,-500.0,0.00016712,2]
[351014869,1738287041054,-634.02,0.00016712,2]
[351014870,1738287041063,-500.0,0.00016712,2]
[351014871,1738287041073,-151.0,0.00016712,2]
[351014872,1738287041084,-500.0,0.00016712,2]
[351014873,1738287041093,-500.0,0.00016712,2]
[351014874,1738287041102,-2538.03,0.00016712,2]
[351014875,1738287041111,-151.0,0.00016712,2]
[351014876,1738287041119,-151.0,0.00016712,2]
[351014877,1738287041128,-1641.67,0.00016712,2]
[351014878,1738287041137,-157.13,0.00016712,2]
[351014879,1738287041146,-939.4,0.00016712,2]
[351014880,1738287041155,-500.0,0.00016712,2]
[351014881,1738287041164,-500.0,0.00016712,2]
[351014882,1738287041173,-500.0,0.00016712,2]
[351014883,1738287041182,-500.0,0.00016712,2]
[351014884,1738287041192,-500.0,0.00016712,2]
[351014885,1738287041201,-500.0,0.00016712,2]
[351014886,1738287041210,-202.43,0.00016712,2]
[351014887,1738287041219,-500.0,0.00016712,2]
[351014888,1738287041229,-500.0,0.00016712,2]
[351014889,1738287041238,-643.77032535,0.00016712,2]
[351014890,1738287041248,-522.31,0.00016712,2]
[351014891,1738287041257,-260.77,0.00016712,2]
[351014892,1738287041268,-651.28,0.00016712,2]
[351014893,1738287041277,-297.93002993,0.00016712,2]
[351014894,1738287041287,-1450.39,0.00016712,2]
[351014895,1738287041300,-562.79,0.00016712,2]
[351014896,1738287041310,-621.69,0.00016712,2]
[351014897,1738287041319,-500.0,0.00016712,2]
[351014898,1738287041328,-500.0,0.00016712,2]
[351014899,1738287041339,-500.0,0.00016712,2]
[351014900,1738287041348,-195.85415968,0.00016712,2]
[351014901,1738287041358,-500.0,0.00016712,2]
[351014902,1738287041367,-500.0,0.00016712,2]
[351014903,1738287041376,-641.32,0.00016712,2]
[351014904,1738287041386,-179.36321423,0.00016712,2]
[351014905,1738287041395,-500.0,0.00016712,2]
[351014906,1738287041405,-8879.4,0.00016712,2]
[351014907,1738287041414,-500.0,0.00016712,2]
[351014908,1738287041423,-500.0,0.00016712,2]
[351014909,1738287041433,-1962.32,0.00016712,2]
[351014910,1738287041537,-500.0,0.00016712,2]
[351014911,1738287041547,-500.0,0.00016753,2]
[351014912,1738287041556,-504.65226578,0.00016753,2]
[351014913,1738287041565,-500.60598341,0.00016753,2]
[351014914,1738287041575,-500.0,0.00016753,2]
[351014915,1738287041585,-500.0,0.00016848,2]
[351014916,1738287041593,-500.0,0.00016848,2]
[351014917,1738287041603,-5038.92,0.00016848,2]
[351014918,1738287041612,-500.0,0.00016849,2]
[351014919,1738287041622,-500.0,0.00016849,2]
[351014920,1738287041631,-500.0,0.00016849,2]
[351014921,1738287041641,-256.14,0.00016849,2]
[351014922,1738287041651,-645.26,0.00016849,2]
[351014923,1738287041663,-500.0,0.00016849,2]
[351014924,1738287041672,-611.4,0.00016849,2]
[351014925,1738287041681,-500.0,0.00016849,2]
[351014926,1738287041692,-500.0,0.00016849,2]
[351014927,1738287041701,-500.0,0.00016849,2]
[351014928,1738287041711,-500.0,0.00016849,2]
[351014929,1738287041720,-500.0,0.00016849,2]
[351014930,1738287041730,-500.0,0.00016849,2]
[351014931,1738287041743,-620.86,0.00016849,2]
[351014932,1738287041752,-913.78,0.00016849,2]
[351014933,1738287041763,-500.0,0.00016849,2]
[351014934,1738287041774,-500.0,0.00016849,2]
[351014935,1738287041783,-810.44,0.00016849,2]
[351014936,1738287041792,-500.0,0.00016849,2]
[351014937,1738287041801,-500.0,0.00016849,2]
[351014938,1738287041811,-229.486835,0.00016849,2]
[351014939,1738287041822,-600.03,0.00016849,2]
[351014940,1738287041833,-229.486835,0.00016849,2]
[351014941,1738287041842,-500.0,0.00016849,2]
[351014942,1738287041851,-241.899419,0.00016849,2]
[351014943,1738287041860,-241.899419,0.00016849,2]
[351014944,1738287041869,-500.0,0.00016849,2]
[351014945,1738287041878,-500.0,0.00016849,2]
[351014946,1738287041888,-500.0,0.00016849,2]
[351014947,1738287041897,-2538.03,0.00016849,2]
[351014948,1738287041907,-500.0,0.00016849,2]
[351014949,1738287041917,-1641.67,0.00016849,2]
[351014950,1738287041927,-939.4,0.00016849,2]
[351014951,1738287041936,-500.0,0.00016849,2]
[351014952,1738287041946,-421.31,0.00016849,2]
[351014953,1738287041955,-500.0,0.00016849,2]
[351014954,1738287041964,-500.0,0.00016849,2]
[351014955,1738287041973,-500.0,0.00016849,2]
[351014956,1738287041983,-293.81,0.00016849,2]
[351014957,1738287041992,-549.71,0.00016849,2]
[351014958,1738287042002,-151.0,0.00016849,2]
[351014959,1738287042012,-651.28,0.00016849,2]
[351014960,1738287042021,-1450.39,0.00016849,2]
[351014961,1738287042030,-151.0,0.00016849,2]
[351014962,1738287042039,-562.79,0.00016849,2]
[351014963,1738287042048,-621.69,0.00016849,2]
[351014964,1738287042058,-500.0,0.00016849,2]
[351014965,1738287042068,-500.0,0.00016849,2]
[351014966,1738287042077,-500.0,0.00016849,2]
[351014967,1738287042090,-500.0,0.00016849,2]
[351014968,1738287042099,-500.0,0.00016849,2]
[351014969,1738287042108,-641.32,0.00016849,2]
[351014970,1738287042117,-167.65152373,0.00016849,2]
[351014971,1738287042126,-8879.4,0.00016849,2]
[351014972,1738287042135,-155.00238335,0.00016849,2]
[351014973,1738287042144,-500.0,0.00016849,2]
[351014974,1738287042153,-1962.32,0.00016849,2]
[351014975,1738287042163,-500.0,0.00016849,2]
[351014976,1738287042172,-500.0,0.00016985,2]
[351014977,1738287042181,-500.0,0.00016985,2]
[351014978,1738287042190,-5038.92,0.00016985,2]
[351014979,1738287042200,-500.0,0.00016986,2]
[351014980,1738287042209,-500.0,0.00016986,2]
[351014981,1738287042218,-500.0,0.00016986,2]
[351014982,1738287042227,-500.0,0.00016986,2]
[351014983,1738287042236,-500.0,0.00016986,2]
[351014984,1738287042246,-500.0,0.00016986,2]
[351014985,1738287042255,-620.86,0.00016986,2]
[351014986,1738287042265,-913.78,0.00016986,2]
[351014987,1738287042274,-500.0,0.00016986,2]
[351014988,1738287042284,-500.0,0.00016986,2]
[351014989,1738287042294,-810.44,0.00016986,2]
[351014990,1738287042304,-500.0,0.00016986,2]
[351014991,1738287042313,-500.0,0.00016986,2]
[351014993,1738287042323,-600.03,0.00016986,2]
[351014994,1738287042336,-500.0,0.00016986,2]
[351014995,1738287042346,-500.0,0.00016986,2]
[351014996,1738287042355,-500.0,0.00016986,2]
[351014997,1738287042365,-500.0,0.00016986,2]
[351014998,1738287042374,-2538.03,0.00016986,2]
[351014999,1738287042384,-1641.67,0.00016986,2]
[351015000,1738287042393,-939.4,0.00016986,2]
[351015001,1738287042404,-328.35,0.00016986,2]
[351015002,1738287042413,-524.59,0.00016986,2]
[351015003,1738287042423,-500.0,0.00016986,2]
[351015005,1738287042433,-529.72,0.00016986,2]
[351015007,1738287042442,-651.28,0.00016986,2]
[351015008,1738287042451,-1450.39,0.00016986,2]
[351015010,1738287042461,-562.79,0.00016986,2]
[351015011,1738287042470,-621.69,0.00016986,2]
[351015012,1738287042480,-336.29,0.00016986,2]
[351015013,1738287042489,-500.0,0.00016986,2]
[351015014,1738287042499,-500.0,0.00016986,2]
[351015015,1738287042508,-500.0,0.00016986,2]
[351015016,1738287042517,-500.0,0.00016986,2]
[351015017,1738287042527,-641.32,0.00016986,2]
[351015018,1738287042537,-8879.4,0.00016986,2]
[351015019,1738287042546,-500.0,0.00016986,2]
[351015020,1738287042556,-1962.32,0.00016986,2]
[351015021,1738287042565,-500.0,0.00016986,2]
[351015022,1738287042575,-1000.0,0.00017021,2]
[351015023,1738287042585,-420.0,0.0001707,2]
[351015024,1738287042594,-500.0,0.00017122,2]
[351015025,1738287042604,-500.0,0.00017122,2]
[351015026,1738287042613,-5038.92,0.00017122,2]
[351015027,1738287042623,-500.0,0.00017123,2]
[351015028,1738287042632,-500.0,0.00017123,2]
[351015030,1738287042641,-500.0,0.00017123,2]
[351015031,1738287042651,-500.0,0.00017123,2]
[351015032,1738287042660,-500.0,0.00017123,2]
[351015033,1738287042670,-500.0,0.00017123,2]
[351015034,1738287042679,-151.0,0.00017123,2]
[351015035,1738287042689,-620.86,0.00017123,2]
[351015036,1738287042702,-913.78,0.00017123,2]
[351015037,1738287042715,-500.0,0.00017123,2]
[351015039,1738287042729,-500.0,0.00017123,2]
[351015040,1738287042743,-810.44,0.00017123,2]
[351015042,1738287042755,-500.0,0.00017123,2]
[351015043,1738287042766,-500.0,0.00017123,2]
[351015044,1738287042779,-600.03,0.00017123,2]
[351015045,1738287042791,-500.0,0.00017123,2]
[351015047,1738287042804,-251.12015185,0.00017123,2]
[351015048,1738287042818,-500.0,0.00017123,2]
[351015049,1738287042830,-151.0,0.00017123,2]
[351015050,1738287042844,-272.0,0.00017123,2]
[351015051,1738287042856,-2538.03,0.00017123,2]
[351015052,1738287042868,-151.0,0.00017123,2]
[351015053,1738287042882,-151.0,0.00017123,2]
[351015054,1738287042894,-1641.67,0.00017123,2]
[351015055,1738287042905,-939.4,0.00017123,2]
[351015056,1738287042917,-513.08802591,0.00017123,2]
[351015057,1738287042928,-151.0,0.00017123,2]
[351015058,1738287042940,-651.28,0.00017123,2]
[351015059,1738287042953,-1450.39,0.00017123,2]
[351015060,1738287042965,-221.64937,0.00017123,2]
[351015061,1738287042977,-562.79,0.00017123,2]
[351015062,1738287042987,-621.69,0.00017123,2]
[351015063,1738287042998,-500.0,0.00017123,2]
[351015064,1738287043010,-500.0,0.00017123,2]
[351015065,1738287043020,-500.0,0.00017123,2]
[351015066,1738287043032,-500.0,0.00017123,2]
[351015067,1738287043044,-641.32,0.00017123,2]
[351015068,1738287043056,-8879.4,0.00017123,2]
[351015069,1738287043068,-500.0,0.00017123,2]
[351015070,1738287043080,-1962.32,0.00017123,2]
[351015071,1738287043094,-500.0,0.00017123,2]
[351015073,1738287043107,-500.0,0.00017259,2]
[351015075,1738287043121,-500.0,0.00017259,2]
[351015076,1738287043133,-500.0,0.00017259,2]
[351015077,1738287043143,-5038.92,0.00017259,2]
[351015078,1738287043154,-500.0,0.0001726,2]
[351015079,1738287043164,-500.0,0.0001726,2]
[351015080,1738287043175,-500.0,0.0001726,2]
[351015081,1738287043187,-151.0,0.0001726,2]
[351015082,1738287043201,-151.0,0.0001726,2]
[351015083,1738287043214,-241.313591,0.0001726,2]
[351015084,1738287043224,-238.513924,0.0001726,2]
[351015085,1738287043234,-238.513924,0.0001726,2]
[351015086,1738287043245,-500.0,0.0001726,2]
[351015087,1738287043256,-500.0,0.0001726,2]
[351015088,1738287043268,-378.31,0.0001726,2]
[351015089,1738287043280,-620.86,0.0001726,2]
[351015090,1738287043290,-913.78,0.0001726,2]
[351015091,1738287043300,-500.0,0.0001726,2]
[351015092,1738287043311,-500.0,0.0001726,2]
[351015093,1738287043322,-810.44,0.0001726,2]
[351015094,1738287043335,-500.0,0.0001726,2]
[351015095,1738287043346,-500.0,0.0001726,2]
[351015096,1738287043356,-600.03,0.0001726,2]
[351015097,1738287043367,-500.0,0.0001726,2]
[351015098,1738287043377,-500.0,0.0001726,2]
[351015099,1738287043388,-2538.03,0.0001726,2]
[351015100,1738287043399,-1641.67,0.0001726,2]
[351015101,1738287043410,-939.4,0.0001726,2]
[351015102,1738287043421,-651.28,0.0001726,2]
[351015104,1738287043431,-1450.39,0.0001726,2]
[351015105,1738287043442,-562.79,0.0001726,2]
[351015106,1738287043452,-621.69,0.0001726,2]
[351015107,1738287043463,-500.0,0.0001726,2]
[351015108,1738287043473,-500.0,0.0001726,2]
[351015109,1738287043484,-529.0184134,0.0001726,2]
[351015110,1738287043495,-500.0,0.0001726,2]
[351015111,1738287043506,-641.32,0.0001726,2]
[351015112,1738287043517,-8879.4,0.0001726,2]
[351015113,1738287043528,-500.0,0.0001726,2]
[351015114,1738287043539,-1962.32,0.0001726,2]
[351015115,1738287043550,-500.0,0.0001726,2]
[351015116,1738287043560,-500.0,0.00017397,2]
[351015117,1738287043571,-500.0,0.00017397,2]
[351015118,1738287043581,-500.0,0.00017397,2]
[351015119,1738287043594,-500.0,0.00017397,2]
[351015120,1738287043604,-500.0,0.00017397,2]
[351015121,1738287043614,-620.86,0.00017397,2]
[351015122,1738287043625,-913.78,0.00017397,2]
[351015123,1738287043635,-500.0,0.00017397,2]
[351015124,1738287043646,-500.0,0.00017397,2]
[351015125,1738287043656,-810.44,0.00017397,2]
[351015126,1738287043666,-500.0,0.00017397,2]
[351015127,1738287043677,-229.486835,0.00017397,2]
[351015128,1738287043688,-500.0,0.00017397,2]
[351015129,1738287043699,-600.03,0.00017397,2]
[351015130,1738287043710,-229.486835,0.00017397,2]
[351015131,1738287043721,-500.0,0.00017397,2]
[351015132,1738287043732,-241.899419,0.00017397,2]
[351015133,1738287043745,-241.899419,0.00017397,2]
[351015134,1738287043756,-500.0,0.00017397,2]
[351015135,1738287043767,-2538.03,0.00017397,2]
[351015136,1738287043778,-1641.67,0.00017397,2]
[351015137,1738287043790,-939.4,0.00017397,2]
[351015138,1738287043801,-651.28,0.00017397,2]
[351015139,1738287043812,-1450.39,0.00017397,2]
[351015140,1738287043824,-562.79,0.00017397,2]
[351015141,1738287043837,-621.69,0.00017397,2]
[351015142,1738287043847,-500.0,0.00017397,2]
[351015143,1738287043858,-500.0,0.00017397,2]
[351015144,1738287043869,-500.0,0.00017397,2]
[351015145,1738287043880,-641.32,0.00017397,2]
[351015146,1738287043890,-8879.4,0.00017397,2]
[351015147,1738287043901,-500.0,0.00017397,2]
[351015148,1738287043912,-1962.32,0.00017397,2]
[351015149,1738287043923,-500.0,0.00017397,2]
[351015150,1738287043934,-500.0,0.00017452,2]
[351015151,1738287043945,-500.0,0.00017533,2]
[351015152,1738287043956,-500.0,0.00017533,2]
[351015153,1738287043967,-5038.92,0.00017533,2]
[351015154,1738287043979,-500.0,0.00017534,2]
[351015155,1738287043990,-500.0,0.00017534,2]
[351015156,1738287044001,-412.95555623,0.00017534,2]
[351015157,1738287044012,-500.0,0.00017534,2]
[351015158,1738287044023,-500.0,0.00017534,2]
[351015159,1738287044168,-620.86,0.00017534,2]
[351015160,1738287044179,-913.78,0.00017534,2]
[351015161,1738287044190,-500.0,0.00017534,2]
[351015162,1738287044200,-500.0,0.00017534,2]
[351015163,1738287044211,-810.44,0.00017534,2]
[351015164,1738287044221,-500.0,0.00017534,2]
[351015165,1738287044230,-500.0,0.00017534,2]
[351015166,1738287044239,-600.03,0.00017534,2]
[351015167,1738287044249,-500.0,0.00017534,2]
[351015168,1738287044259,-257.56203393,0.00017534,2]
[351015169,1738287044269,-151.0,0.00017534,2]